bitfinex/quotes_BTCUSD_20250709
["timestamp","ask_amount","ask_price","bid_price","bid_amount"]
[1752039919876,0.39667872,109030.0,109020.0,0.07380027]
[1752039920102,0.69993616,109030.0,109020.0,0.07380027]
[1752039920541,0.36157872,109030.0,109020.0,0.23451976]
[1752039920758,0.01834297,109030.0,109020.0,0.24369196]
[1752039920967,0.18827475,109030.0,109020.0,0.24369196]
[1752039921529,0.17910247,109030.0,109020.0,0.26203611]
[1752039921740,0.19744562,109030.0,109020.0,0.26203611]
[1752039921945,0.2066174,109030.0,109020.0,0.25286408]
[1752039922186,0.39011068,109030.0,109020.0,0.04189498]
[1752039922623,0.69429446,109030.0,109020.0,0.23452001]
[1752039922989,0.39111068,109030.0,109020.0,0.23452001]
[1752039923388,0.37271068,109030.0,109020.0,0.24369238]
[1752039923751,0.36353923,109030.0,109020.0,0.23452001]
[1752039924479,0.36353923,109030.0,109020.0,0.22534755]
[1752039924682,0.36353923,109030.0,109020.0,0.23452009]
[1752039925271,0.67575131,109030.0,109020.0,0.03272236]
[1752039925478,0.69295131,109030.0,109020.0,0.03272236]
[1752039925691,0.38976753,109030.0,109020.0,0.03272236]
[1752039925924,0.69295131,109030.0,109020.0,0.03272236]
[1752039926167,0.38976753,109030.0,109020.0,0.03272236]
[1752039926373,0.69295131,109030.0,109020.0,0.03272236]
[1752039929304,0.38976753,109030.0,109020.0,0.03272236]
[1752039929519,0.69295131,109030.0,109020.0,0.03272236]
[1752039931124,0.69295131,109030.0,109020.0,0.04074892]
[1752039931332,0.38976753,109030.0,109020.0,0.04074892]
[1752039931546,0.69295131,109030.0,109020.0,0.04074892]
[1752039932652,0.70749216,109030.0,109020.0,0.04074892]
[1752039932869,0.88656756,109030.0,109020.0,0.00802656]
[1752039935107,0.79892909,109030.0,109020.0,0.00802656]
[1752039937523,0.49574531,109030.0,109020.0,0.00802656]
[1752039937738,0.33598531,109030.0,109020.0,0.00802656]
[1752039937963,0.37196753,109030.0,109020.0,0.00802656]
[1752039938171,0.65695131,109030.0,109020.0,0.00802656]
[1752039939069,0.69245131,109030.0,109020.0,0.00802656]
[1752039941078,0.38926753,109030.0,109020.0,0.00802656]
[1752039941299,0.69245131,109030.0,109020.0,0.00802656]
[1752039942422,0.78003978,109030.0,109020.0,0.00802656]
[1752039943448,0.19262503,109020.0,109010.0,0.00348]
[1752039943653,0.49580881,109020.0,109010.0,0.04400717]
[1752039944400,0.19262503,109020.0,109010.0,0.04400717]
[1752039947884,0.49580881,109020.0,109010.0,0.04400717]
[1752039949075,0.51350881,109020.0,109010.0,0.04400717]
[1752039949513,0.53080881,109020.0,109010.0,0.04400717]
[1752039950771,0.51350881,109020.0,109010.0,0.04400717]
[1752039951093,0.53140881,109020.0,109010.0,0.04400717]
[1752039951715,0.53140881,109020.0,109010.0,0.03623063]
[1752039951917,0.53140881,109020.0,109010.0,0.04411592]
[1752039953817,0.55898124,109020.0,109010.0,0.04411592]
[1752039955395,0.25079746,109020.0,109010.0,0.04411592]
[1752039955594,0.55398124,109020.0,109010.0,0.04411592]
[1752039955860,0.53648124,109020.0,109010.0,0.04411592]
[1752039957618,0.53648124,109020.0,109010.0,0.04412122]
[1752039959330,0.71593103,109020.0,109010.0,0.04412122]
[1752039959561,1.46677251,109020.0,109010.0,0.04412122]
[1752039959989,1.16358873,109020.0,109010.0,0.04412122]
[1752039960683,1.46677251,109020.0,109010.0,0.03493776]
[1752039960912,1.46677251,109020.0,109010.0,0.00789059]
[1752039961134,0.24048355,109010.0,109000.0,0.002]
[1752039961355,0.79338426,109010.0,109000.0,0.002]
[1752039961585,0.50503656,108990.0,108980.0,0.04307791]
[1752039961809,0.65414158,108990.0,108980.0,0.002]
[1752039962018,0.36013278,108990.0,108980.0,0.19469582]
[1752039962865,0.36013278,108990.0,108980.0,0.1946959]
[1752039963072,0.35095805,108990.0,108980.0,0.1946959]
[1752039963286,0.34178307,108990.0,108980.0,0.002]
[1752039963750,0.0109,108970.0,108940.0,0.71285737]
[1752039964035,0.18357044,108950.0,108940.0,0.0821261]
[1752039964261,0.18357044,108950.0,108870.0,0.14291753]
[1752039964262,0.00918425,108880.0,108870.0,0.14291753]
[1752039964499,1.23583446,108880.0,108860.0,0.52237649]
[1752039964734,0.18373909,108850.0,108840.0,0.0024]
[1752039964965,0.18373909,108850.0,108830.0,0.0052856]
[1752039964966,0.19294359,108840.0,108830.0,0.0052856]
[1752039965201,0.19294359,108840.0,108830.0,1e-08]
[1752039965202,0.53294359,108840.0,108830.0,1e-08]
[1752039965472,0.19297905,108820.0,108810.0,0.32349518]
[1752039965702,0.49616283,108820.0,108810.0,0.32349518]
[1752039965934,0.60688298,108820.0,108810.0,0.41493211]
[1752039966158,0.03276609,108820.0,108810.0,0.53533848]
[1752039966389,0.06952233,108820.0,108810.0,0.3239618]
[1752039966615,0.05114412,108820.0,108810.0,0.49970421]
[1752039966845,0.08737528,108820.0,108810.0,0.4997043]
[1752039967076,0.0735887,108820.0,108810.0,0.56207427]
[1752039967311,0.0735887,108820.0,108810.0,0.6535112]
[1752039967534,0.0734948,108820.0,108810.0,0.6535112]
[1752039967764,0.0734948,108820.0,108810.0,0.97048726]
[1752039968052,0.03276609,108820.0,108810.0,1.31048726]
[1752039968283,0.04072871,108830.0,108820.0,0.58545717]
[1752039968513,0.04072871,108840.0,108830.0,0.24543775]
[1752039968746,0.04272871,108850.0,108840.0,0.24651834]
[1752039968975,0.08375416,108850.0,108840.0,0.33795527]
[1752039969217,0.08375416,108850.0,108840.0,0.65493133]
[1752039969218,0.04302545,108850.0,108840.0,0.65493133]
[1752039969437,0.04302545,108850.0,108840.0,1.31190739]
[1752039970170,0.0338268,108850.0,108840.0,1.47644824]
[1752039970424,0.00766103,108850.0,108840.0,1.47644824]
[1752039970654,0.04272871,108870.0,108860.0,0.19932461]
[1752039970655,0.1301082,108870.0,108860.0,0.19932461]
[1752039970884,0.19435145,108870.0,108860.0,0.95739209]
[1752039971131,0.19435145,108870.0,108860.0,0.94820632]
[1752039971132,0.20353612,108870.0,108860.0,0.94820632]
[1752039971357,0.38724145,108870.0,108860.0,0.45027693]
[1752039971614,0.08461268,108870.0,108860.0,0.36751787]
[1752039971856,0.33334382,108870.0,108860.0,0.35884]
[1752039972076,0.35171426,108870.0,108860.0,0.35930662]
[1752039972292,0.16800792,108870.0,108860.0,0.35930662]
[1752039972513,0.41586343,108870.0,108860.0,0.35930662]
[1752039972730,0.24089009,108870.0,108860.0,0.35930662]
[1752039972949,0.4337806,108870.0,108860.0,0.00046662]
[1752039973174,0.41541134,108870.0,108860.0,0.35822662]
[1752039973398,0.41641134,108870.0,108860.0,0.35822662]
[1752039973611,0.39949426,108870.0,108860.0,0.35822662]
[1752039974501,0.39949426,108870.0,108860.0,0.34926031]
[1752039974723,0.21578893,108870.0,108860.0,0.33431645]
[1752039974943,0.19741883,108870.0,108860.0,0.84420083]
[1752039975165,0.20024823,108870.0,108860.0,0.85338677]
[1752039975441,0.20943307,108870.0,108860.0,0.84420083]
[1752039975675,0.20943307,108870.0,108860.0,0.5455286]
[1752039975676,0.14670533,108870.0,108860.0,0.5455286]
[1752039975903,0.13752032,108870.0,108860.0,0.58903336]
[1752039976126,0.13752049,108870.0,108860.0,0.54922832]
[1752039976361,0.14670575,108870.0,108860.0,0.55841426]
[1752039976606,0.1283354,108870.0,108860.0,0.56760011]
[1752039976882,0.1283354,108870.0,108860.0,0.49727515]
[1752039976883,0.13752032,108870.0,108860.0,0.49727515]
[1752039977115,0.1283354,108870.0,108860.0,0.49727515]
[1752039977335,0.13752041,108870.0,108860.0,0.49727515]
[1752039977559,0.13752041,108870.0,108860.0,0.50646083]
[1752039977769,0.13752041,108870.0,108860.0,0.49727472]
[1752039977993,0.13752041,108870.0,108860.0,0.48808904]
[1752039978637,0.1283354,108870.0,108860.0,0.48808904]
[1752039978855,0.13752049,108870.0,108860.0,0.47890327]
[1752039979066,0.13752049,108870.0,108860.0,0.48808904]
[1752039979686,0.13752049,108870.0,108860.0,0.27680927]
[1752039979930,0.13752049,108870.0,108860.0,0.28599538]
[1752039980146,0.13752049,108870.0,108860.0,0.2552562]
[1752039980366,0.20209383,108860.0,108840.0,0.53583097]
[1752039980584,0.28479785,108850.0,108840.0,0.00046803]
[1752039980800,0.61586782,108850.0,108840.0,0.00046803]
[1752039981023,0.43889176,108850.0,108840.0,0.00046803]
[1752039981456,0.7092896,108850.0,108840.0,0.00046803]
[1752039981675,0.8858896,108850.0,108840.0,0.00046803]
[1752039982126,0.7092896,108850.0,108840.0,0.00246803]
[1752039982345,0.61525176,108850.0,108840.0,0.00446803]
[1752039982562,0.63004439,108850.0,108840.0,0.00246803]
[1752039982773,0.01837508,108840.0,108830.0,0.03173153]
[1752039983086,0.52922812,108840.0,108830.0,0.02254298]
[1752039983216,0.52922812,108840.0,108830.0,0.02254306]
[1752039983437,0.52922812,108840.0,108830.0,0.01837702]
[1752039983653,0.00918788,108830.0,108820.0,0.38016242]
[1752039983870,0.05644739,108830.0,108820.0,0.28341685]
[1752039984316,0.05644739,108830.0,108820.0,0.30179506]
[1752039984769,0.04725951,108830.0,108820.0,0.30279506]
[1752039985211,0.05645323,108830.0,108820.0,0.20416242]
[1752039985440,0.05645323,108830.0,108820.0,0.21335131]
[1752039985875,0.04728346,108830.0,108820.0,0.21335131]
[1752039986092,0.36569658,108830.0,108820.0,0.21335131]
[1752039986303,0.36569658,108830.0,108820.0,0.20472829]
[1752039987185,0.37488454,108830.0,108820.0,0.20472829]
[1752039987397,0.36569658,108830.0,108820.0,0.20472829]
[1752039988030,0.37488454,108830.0,108820.0,0.21335767]
[1752039988254,0.65972146,108830.0,108820.0,0.17988839]
[1752039988481,0.47594861,108830.0,108820.0,0.1890777]
[1752039988688,0.47594861,108830.0,108820.0,0.20745641]
[1752039988893,0.46676006,108830.0,108820.0,0.21664547]
[1752039989097,0.45757168,108830.0,108820.0,0.22583386]
[1752039989306,0.45757168,108830.0,108820.0,0.20427553]
[1752039989562,0.45757168,108830.0,108820.0,0.18589774]
[1752039989563,0.47594853,108830.0,108820.0,0.18589774]
[1752039989761,0.45757168,108830.0,108820.0,0.20427561]
[1752039989964,0.46675998,108830.0,108820.0,0.20427561]
[1752039990176,0.45829336,108830.0,108820.0,0.1870291]
[1752039990384,0.46748183,108830.0,108820.0,0.16865107]
[1752039990588,0.46748183,108830.0,108820.0,0.16865123]
[1752039990814,0.46748191,108830.0,108820.0,0.17784029]
[1752039991043,0.43991693,108830.0,108820.0,0.17784012]
[1752039991449,0.44910506,108830.0,108820.0,0.17784012]
[1752039991652,0.45829336,108830.0,108820.0,0.17784012]
[1752039991852,0.4427551,108830.0,108820.0,0.17784021]
[1752039992062,0.4427551,108830.0,108820.0,0.1870291]
[1752039992899,0.4519434,108830.0,108820.0,0.1870291]
[1752039993175,0.4519434,108830.0,108820.0,0.17784029]
[1752039993477,0.4519434,108830.0,108820.0,0.18702918]
[1752039993682,0.4519434,108830.0,108820.0,0.17784029]
[1752039993879,0.4427551,108830.0,108820.0,0.18702918]
[1752039994517,0.43356697,108830.0,108820.0,0.18702918]
[1752039994869,0.4519434,108830.0,108820.0,0.17784029]
[1752039995081,0.4519434,108830.0,108820.0,0.18702927]
[1752039995302,0.43356689,108830.0,108820.0,0.18702885]
[1752039995599,0.44275494,108830.0,108820.0,0.18702885]
[1752039995911,0.44275502,108830.0,108820.0,0.18702885]
[1752039996284,0.43356689,108830.0,108820.0,0.18702885]
[1752039996487,0.42437901,108830.0,108820.0,0.18702885]
[1752039996689,0.4427551,108830.0,108820.0,0.18702885]
[1752039997111,0.43356706,108830.0,108820.0,0.18702885]
[1752039997331,0.43356697,108830.0,108820.0,0.18702885]
[1752039997776,0.42437901,108830.0,108820.0,0.18702885]
[1752039998432,0.07349901,108830.0,108820.0,0.18702885]
[1752039998648,0.34408,108830.0,108820.0,0.50400491]
[1752039999004,0.34408,108830.0,108820.0,0.18702885]
[1752040001101,0.07596448,108850.0,108840.0,0.19294359]
[1752040001307,0.07596448,108850.0,108840.0,0.21131825]
[1752040001308,0.41920448,108850.0,108840.0,0.21131825]
[1752040002443,0.42220448,108850.0,108840.0,0.21131825]
[1752040003689,0.42520448,108850.0,108840.0,0.21131825]
[1752040004210,0.08196448,108850.0,108840.0,0.21131825]
[1752040004411,0.25272448,108850.0,108840.0,0.21131825]
[1752040004627,0.08196448,108850.0,108840.0,0.21131825]
[1752040004842,0.04885501,108850.0,108840.0,0.22848165]
[1752040005054,0.1734,108850.0,108840.0,0.23491789]
[1752040005711,0.005,108850.0,108840.0,0.23491789]
[1752040005953,0.17516,108850.0,108840.0,0.23491789]
[1752040006200,0.17516,108850.0,108840.0,0.22848165]
[1752040006367,0.17516,108850.0,108840.0,0.2284834]
[1752040006695,0.17216,108850.0,108840.0,0.2284834]
[1752040007026,0.17216,108850.0,108840.0,0.2794834]
[1752040007027,0.003,108850.0,108840.0,0.2794834]
[1752040007227,0.003,108850.0,108840.0,0.68789639]
[1752040007429,0.07549901,108870.0,108860.0,0.21127951]
[1752040007632,0.24537901,108870.0,108860.0,0.22858467]
[1752040008669,0.24637901,108870.0,108860.0,0.22858467]
[1752040008898,0.24621901,108870.0,108860.0,0.22858467]
[1752040009024,0.24521901,108870.0,108860.0,0.22858467]
[1752040009424,0.24521901,108870.0,108860.0,0.22958467]
[1752040010159,0.2635881,108870.0,108860.0,0.22958467]
[1752040010363,0.27277277,108870.0,108860.0,0.22958467]
[1752040010574,0.002,108870.0,108860.0,0.54656073]
[1752040010782,0.17104,108870.0,108860.0,0.69109766]
[1752040010994,0.002,108870.0,108860.0,0.6845416]
[1752040011206,0.002,108870.0,108860.0,0.6591416]
[1752040012336,0.002,108870.0,108860.0,0.97611766]
[1752040012540,0.002,108870.0,108860.0,1.02881766]
[1752040012941,0.52924597,108890.0,108880.0,0.2112407]
[1752040013136,0.52651378,108890.0,108880.0,0.22840585]
[1752040013986,0.53569685,108890.0,108880.0,0.22840585]
[1752040014193,0.52924597,108890.0,108880.0,0.22840585]
[1752040014629,0.5200629,108890.0,108880.0,0.22840585]
[1752040014855,0.5198629,108890.0,108880.0,0.22840585]
[1752040015069,0.4977951,108890.0,108880.0,0.22840585]
[1752040015284,0.37071756,108890.0,108880.0,0.01716515]
[1752040015507,0.37071756,108890.0,108880.0,0.21003803]
[1752040015508,0.77037646,108890.0,108880.0,0.21003803]
[1752040015720,0.76119339,108890.0,108880.0,0.01716515]
[1752040016152,0.44421733,108890.0,108880.0,0.02634957]
[1752040016377,0.44421733,108890.0,108880.0,0.21003794]
[1752040016625,0.44421733,108890.0,108880.0,0.19287288]
[1752040017065,0.44421733,108890.0,108870.0,0.21124466]
[1752040017066,0.01836774,108880.0,108870.0,0.21124466]
[1752040017298,0.00918383,108880.0,108870.0,0.20206016]
[1752040017528,0.01836783,108880.0,108870.0,0.20206016]
[1752040017767,0.00918383,108880.0,108870.0,0.20206016]
[1752040018230,0.01836783,108880.0,108870.0,0.20206016]
[1752040019085,0.00918383,108880.0,108870.0,0.20206016]
[1752040019299,0.01836791,108880.0,108870.0,0.20206016]
[1752040019503,0.18588791,108880.0,108870.0,0.20206016]
[1752040020174,0.18588791,108880.0,108870.0,0.20306016]
[1752040020791,0.17670383,108880.0,108870.0,0.20306016]
[1752040020948,0.18588783,108880.0,108870.0,0.20306016]
[1752040021381,0.195072,108880.0,108870.0,0.20306016]
[1752040021583,0.18588783,108880.0,108870.0,0.20506016]
[1752040022164,0.20425616,108880.0,108870.0,0.20506016]
[1752040022387,0.19507191,108880.0,108870.0,0.20506016]
[1752040022811,0.17670383,108880.0,108870.0,0.20506016]
[1752040023023,0.18588783,108880.0,108870.0,0.20506016]
[1752040023445,0.17670383,108880.0,108870.0,0.20506016]
[1752040023606,0.18588783,108880.0,108870.0,0.20506016]
[1752040024021,0.195072,108880.0,108870.0,0.20506016]
[1752040024425,0.20425625,108880.0,108870.0,0.20506016]
[1752040025119,0.21344058,108880.0,108870.0,0.20506049]
[1752040025328,0.03673625,108880.0,108870.0,0.20506049]
[1752040025918,0.22042521,108880.0,108870.0,0.19587608]
[1752040026125,0.20205704,108880.0,108870.0,0.18670533]
[1752040026341,0.20205704,108880.0,108870.0,0.19589042]
[1752040026540,0.25185704,108880.0,108870.0,0.19589042]
[1752040026756,0.07460916,108880.0,108870.0,0.18408913]
[1752040026922,0.08379325,108880.0,108870.0,0.18408913]
[1752040027131,0.08379325,108880.0,108870.0,0.18408921]
[1752040027329,0.08379316,108880.0,108870.0,0.19327397]
[1752040027637,0.07460883,108880.0,108870.0,0.20245864]
[1752040028797,0.04071729,108880.0,108870.0,0.199697]
[1752040029254,0.04071721,108880.0,108870.0,0.199697]
[1752040029460,0.04990154,108880.0,108870.0,0.199697]
[1752040030081,0.0315327,108880.0,108870.0,0.20888167]
[1752040030308,0.03153262,108880.0,108870.0,0.20888167]
[1752040030556,0.04071645,108880.0,108870.0,0.20888167]
[1752040031831,0.02754963,108890.0,108880.0,0.2112407]
[1752040032040,0.07698963,108890.0,108880.0,0.21766381]
[1752040032252,0.3433438,108890.0,108880.0,0.20848007]
[1752040032705,0.3433438,108890.0,108880.0,0.21766424]
[1752040033155,0.33416082,108890.0,108880.0,0.21766424]
[1752040033363,0.32497758,108890.0,108880.0,0.19929582]
[1752040033576,0.32597758,108890.0,108880.0,0.19929582]
[1752040033823,0.32597758,108890.0,108880.0,0.20848007]
[1752040034239,0.32597758,108890.0,108880.0,0.19929582]
[1752040034562,0.32597758,108890.0,108880.0,0.20848007]
[1752040035264,0.14230599,108890.0,108880.0,0.21766424]
[1752040035469,0.32597758,108890.0,108880.0,0.00642303]
[1752040036420,0.31679417,108890.0,108880.0,0.00642303]
[1752040036832,0.31779417,108890.0,108880.0,0.00642303]
[1752040037234,0.24429516,108890.0,108880.0,0.00642303]
[1752040037471,0.24429516,108890.0,108880.0,0.19011149]
[1752040037874,0.27399516,108890.0,108880.0,0.00642303]
[1752040038042,0.69257023,108890.0,108880.0,0.00642303]
[1752040038874,0.77109233,108890.0,108880.0,0.00642303]
[1752040039436,1.12563318,108890.0,108880.0,0.00642303]
[1752040039627,1.21707011,108890.0,108880.0,0.00642303]
[1752040039835,1.16763011,108890.0,108880.0,0.00642303]
[1752040040034,1.12527318,108890.0,108880.0,0.00642303]
[1752040040698,1.09022668,108890.0,108880.0,0.00642303]
[1752040040944,1.0384608,108890.0,108880.0,0.00642303]
[1752040042973,1.0384208,108890.0,108880.0,0.00642303]
[1752040044192,1.06667725,108890.0,108880.0,0.00642303]
[1752040045990,1.0384208,108890.0,108880.0,0.00642303]
[1752040046940,0.26147526,108870.0,108860.0,0.00214001]
[1752040047170,1.00983465,108870.0,108860.0,0.00214001]
[1752040047400,0.96103465,108870.0,108860.0,0.00214001]
[1752040047633,1.00979465,108870.0,108860.0,0.00214001]
[1752040048978,0.96103465,108870.0,108860.0,0.00214001]
[1752040049259,1.00971465,108870.0,108860.0,0.00214001]
[1752040049478,1.3642555,108870.0,108860.0,0.00414001]
[1752040049702,0.70745304,108870.0,108860.0,0.00414001]
[1752040049917,1.37070884,108870.0,108860.0,0.00414001]
[1752040050336,1.37070884,108870.0,108860.0,0.00514001]
[1752040050676,1.37270884,108870.0,108860.0,0.00214001]
[1752040050901,0.18372221,108860.0,108850.0,0.11583653]
[1752040051104,0.34725654,108860.0,108850.0,0.11597657]
[1752040051336,0.57039323,108860.0,108850.0,0.10678979]
[1752040051536,0.57039323,108860.0,108850.0,0.11597657]
[1752040051731,0.57039323,108860.0,108850.0,0.12516327]
[1752040051917,0.52179323,108860.0,108850.0,0.11597657]
[1752040052111,0.57035323,108860.0,108850.0,0.11597657]
[1752040052371,0.57035323,108860.0,108850.0,0.09760292]
[1752040052599,0.55198186,108860.0,108850.0,0.09760292]
[1752040052789,0.55198186,108860.0,108850.0,0.10678979]
[1752040053079,0.24788063,108860.0,108850.0,0.11597657]
[1752040053276,0.55194186,108860.0,108850.0,0.10678987]
[1752040053491,0.55194186,108860.0,108850.0,0.11597674]
[1752040053680,0.24788063,108860.0,108850.0,0.12516352]
[1752040053824,0.55194186,108860.0,108850.0,0.13435022]
[1752040054200,0.55194186,108860.0,108850.0,0.12516352]
[1752040054361,0.55194186,108860.0,108850.0,0.11597674]
[1752040054758,0.55194186,108860.0,108850.0,0.12516352]
[1752040055012,0.50342186,108860.0,108850.0,0.13435022]
[1752040055219,0.56100763,108860.0,108850.0,0.12516352]
[1752040055443,0.07322368,108860.0,108850.0,0.14353641]
[1752040055690,0.07322368,108860.0,108850.0,0.17113641]
[1752040055917,0.37728491,108860.0,108850.0,0.17113641]
[1752040056568,0.36809914,108860.0,108850.0,0.14353641]
[1752040056800,0.01563783,108860.0,108850.0,0.16068894]
[1752040057008,0.07322343,108860.0,108850.0,0.18126724]
[1752040057226,0.0548524,108860.0,108850.0,0.21006724]
[1752040057439,0.03674012,108870.0,108860.0,0.202094]
[1752040057640,0.56372192,108870.0,108860.0,0.18850687]
[1752040057771,0.56372192,108870.0,108860.0,0.20687858]
[1752040057974,0.32243133,108870.0,108860.0,0.22525003]
[1752040058188,0.06676959,108870.0,108860.0,0.26303554]
[1752040058575,0.07595477,108870.0,108860.0,0.24466443]
[1752040058775,0.07595477,108870.0,108860.0,0.25384994]
[1752040058776,0.38001591,108870.0,108860.0,0.25384994]
[1752040059016,0.38920117,108870.0,108860.0,0.22957739]
[1752040059181,0.38920109,108870.0,108860.0,0.22957722]
[1752040059429,0.57490642,108870.0,108860.0,0.18260577]
[1752040059885,0.56372175,108870.0,108860.0,0.18260585]
[1752040060082,0.56372175,108870.0,108860.0,0.01715253]
[1752040060282,0.24129051,108870.0,108860.0,0.21006068]
[1752040060436,0.24129051,108870.0,108860.0,0.20087474]
[1752040060437,0.55453666,108870.0,108860.0,0.20087474]
[1752040060634,0.56572192,108870.0,108860.0,0.2192467]
[1752040060842,0.56372192,108870.0,108860.0,0.19281798]
[1752040061297,0.56372192,108870.0,108860.0,0.28983016]
[1752040061638,0.56372192,108870.0,108860.0,0.26692137]
[1752040061845,0.56372192,108870.0,108860.0,0.32181286]
[1752040062059,0.56372192,108870.0,108860.0,0.34018482]
[1752040062273,0.54535182,108870.0,108860.0,0.17016334]
[1752040062483,0.54535182,108870.0,108860.0,0.08782624]
[1752040063124,0.54535182,108870.0,108860.0,0.07920451]
[1752040063530,0.54535182,108870.0,108860.0,0.35444984]
[1752040063762,0.54535182,108870.0,108860.0,0.34208189]
[1752040063979,0.54535182,108870.0,108860.0,0.33289612]
[1752040064191,0.54535182,108870.0,108860.0,0.3237101]
[1752040064670,0.54535182,108870.0,108860.0,0.13998789]
[1752040064888,0.19289059,108870.0,108860.0,0.149174]
[1752040065106,0.54535182,108870.0,108860.0,0.05765079]
[1752040065967,0.54535182,108870.0,108860.0,0.05334006]
[1752040066174,0.24129059,108870.0,108860.0,0.05334006]
[1752040066596,0.54535182,108870.0,108860.0,0.05334006]
[1752040066805,0.61885083,108870.0,108860.0,0.05334006]
[1752040067892,0.98131206,108870.0,108860.0,0.05334006]
[1752040069452,1.07920684,108870.0,108860.0,0.13567716]
[1752040070123,1.07920684,108870.0,108860.0,0.05334006]
[1752040070592,0.47108438,108870.0,108860.0,0.05334006]
[1752040070803,1.02080684,108870.0,108860.0,0.05334006]
[1752040071133,0.66834561,108870.0,108860.0,0.05334006]
[1752040071348,0.71670561,108870.0,108860.0,0.05334006]
[1752040071787,0.6432066,108870.0,108860.0,0.23706227]
[1752040072247,0.55176967,108870.0,108860.0,0.23706227]
[1752040072459,0.55176967,108870.0,108860.0,0.25543414]
[1752040072807,0.55176967,108870.0,108860.0,0.24624829]
[1752040073149,0.55176967,108870.0,108860.0,0.26400652]
[1752040073363,0.55176967,108870.0,108860.0,0.27319237]
[1752040073994,0.55176967,108870.0,108860.0,0.25482058]
[1752040074195,0.54258441,108870.0,108860.0,0.25482067]
[1752040074404,0.54258441,108870.0,108860.0,0.35552956]
[1752040074606,0.49422441,108870.0,108860.0,0.35552956]
[1752040074841,0.5517695,108870.0,108860.0,0.36471533]
[1752040075052,0.56095434,108870.0,108860.0,0.34634371]
[1752040075266,0.5517695,108870.0,108860.0,0.15343556]
[1752040075467,0.5517695,108870.0,108860.0,0.34634379]
[1752040075903,0.5517695,108870.0,108860.0,0.35552973]
[1752040077405,0.5517695,108870.0,108860.0,0.35553323]
[1752040077588,0.54258441,108870.0,108860.0,0.34634729]
[1752040077830,0.23852318,108870.0,108860.0,0.34634729]
[1752040078030,0.57013952,108870.0,108860.0,0.3793665]
[1752040078248,0.56095468,108870.0,108860.0,0.3793665]
[1752040078473,0.54531174,108870.0,108860.0,0.18645827]
[1752040078693,0.54531174,108870.0,108860.0,0.19564429]
[1752040078908,0.54531174,108870.0,108860.0,0.362169]
[1752040079307,0.54531174,108870.0,108860.0,0.2798319]
[1752040080844,0.54531174,108870.0,108860.0,0.08692367]
[1752040081068,0.53612656,108870.0,108860.0,0.07773756]
[1752040081298,0.53612656,108870.0,108860.0,0.11901486]
[1752040082636,0.23206533,108870.0,108860.0,0.11901486]
[1752040082847,0.53612656,108870.0,108860.0,0.11901486]
[1752040083389,0.23206533,108870.0,108860.0,0.11901486]
[1752040083593,0.53612656,108870.0,108860.0,0.11901486]
[1752040083874,0.53612656,108870.0,108860.0,0.13621436]
[1752040084331,0.5425894,108870.0,108860.0,0.13621436]
[1752040085637,0.54254967,108870.0,108860.0,0.13621495]
[1752040086056,0.54254976,108870.0,108860.0,0.1406019]
[1752040086732,0.5597854,108870.0,108860.0,0.12340181]
[1752040086946,0.5597854,108870.0,108860.0,0.13258792]
[1752040086947,0.25572417,108870.0,108860.0,0.13258792]
[1752040087160,0.5597854,108870.0,108860.0,0.13258792]
[1752040087581,0.5597854,108870.0,108860.0,0.12340181]
[1752040088231,0.5597854,108870.0,108860.0,0.30273707]
[1752040088451,0.5597854,108870.0,108860.0,0.31192309]
[1752040088873,0.5597854,108870.0,108860.0,0.11901486]
[1752040089086,0.5597854,108870.0,108860.0,0.1218887]
[1752040090430,0.26490926,108870.0,108860.0,0.3538827]
[1752040090646,0.57815567,108870.0,108860.0,0.3538827]
[1752040090854,0.57815567,108870.0,108860.0,0.34469685]
[1752040091315,0.57815567,108870.0,108860.0,0.22568199]
[1752040091513,0.56897058,108870.0,108860.0,0.22568199]
[1752040091729,0.27409427,108870.0,108860.0,0.19578199]
[1752040091933,0.5781555,108870.0,108860.0,0.20496784]
[1752040092143,0.56897058,108870.0,108860.0,0.19578199]
[1752040092811,0.56897058,108870.0,108860.0,0.18659605]
[1752040093036,0.26490935,108870.0,108860.0,0.19578216]
[1752040093254,0.56897058,108870.0,108860.0,0.20496801]
[1752040093475,0.56897058,108870.0,108860.0,0.19578216]
[1752040093914,0.55173494,108870.0,108860.0,0.19578216]
[1752040094130,0.32889444,108870.0,108860.0,0.22333946]
[1752040094340,0.5792497,108870.0,108860.0,0.21415412]
[1752040094556,0.5792497,108870.0,108860.0,0.22333997]
[1752040094776,0.57006503,108870.0,108860.0,0.26175269]
[1752040095221,0.57006503,108870.0,108860.0,0.25256684]
[1752040095437,0.37717444,108870.0,108860.0,0.25256684]
[1752040095649,0.52178495,108870.0,108860.0,0.25256684]
[1752040095861,0.57006495,108870.0,108860.0,0.25256684]
[1752040097155,0.57006495,108870.0,108860.0,0.32532647]
[1752040097358,0.56088003,108870.0,108860.0,0.27485406]
[1752040097808,0.2568188,108870.0,108860.0,0.27485406]
[1752040098020,0.56088003,108870.0,108860.0,0.27485406]
[1752040098426,0.56088003,108870.0,108860.0,0.28403991]
[1752040098859,0.02483255,108870.0,108860.0,0.29322508]
[1752040099074,0.03401756,108870.0,108860.0,0.33451164]
[1752040099281,0.02483255,108870.0,108860.0,0.33451164]
[1752040099492,0.0547432,108870.0,108860.0,0.33451164]
[1752040099704,0.06392787,108870.0,108860.0,0.33451164]
[1752040099918,0.0639277,108870.0,108860.0,0.33451164]
[1752040100333,0.07311237,108870.0,108860.0,0.33451164]
[1752040100751,0.0547032,108870.0,108860.0,0.33451164]
[1752040100962,0.0064632,108870.0,108860.0,0.42594857]
[1752040101174,0.0547032,108870.0,108860.0,0.42594857]
[1752040101386,0.04824,108870.0,108860.0,0.42594857]
[1752040101806,0.04824,108870.0,108860.0,0.38466201]
[1752040102015,0.04824,108870.0,108860.0,0.38566201]
[1752040102393,0.04824,108870.0,108860.0,0.42691585]
[1752040103086,0.04824,108870.0,108860.0,0.48192091]
[1752040105970,0.34079713,108880.0,108870.0,0.2112601]
[1752040106212,0.34079713,108880.0,108870.0,0.21413388]
[1752040106213,0.39545359,108880.0,108870.0,0.21413388]
[1752040106418,0.38626934,108880.0,108870.0,0.21413388]
[1752040106559,0.39545334,108880.0,108870.0,0.24343388]
[1752040106770,0.09139211,108880.0,108870.0,0.24343388]
[1752040106971,0.39545334,108880.0,108870.0,0.24343388]
[1752040107255,0.39545325,108880.0,108870.0,0.24343388]
[1752040107577,0.4046375,108880.0,108870.0,0.24343388]
[1752040108001,0.08220794,108880.0,108870.0,0.24343388]
[1752040108181,0.06656757,108880.0,108870.0,0.27313388]
[1752040108797,0.05738366,108880.0,108870.0,0.27313388]
[1752040109216,0.07575149,108880.0,108870.0,0.27313388]
[1752040110135,0.0482,108880.0,108870.0,0.27313388]
[1752040110348,0.05738366,108880.0,108870.0,0.27313388]
[1752040110550,0.06656757,108880.0,108870.0,0.27313388]
[1752040111401,0.07575165,108880.0,108870.0,0.27313388]
[1752040111606,0.06656757,108880.0,108870.0,0.27313388]
[1752040112019,0.07575165,108880.0,108870.0,0.27313388]
[1752040112228,0.0482,108880.0,108870.0,0.27313388]
[1752040112434,0.06656757,108880.0,108870.0,0.27313388]